[Event "1000GM Spring GM-A 2024"]
[Site "New York"]
[Date "2024.04.01"]
[Round "9.1"]
[White "Huston, Gus"]
[Black "Shlyakhtenko, Robert"]
[Result "1-0"]
[ECO "B42"]
[WhiteElo "2401"]
[BlackElo "2384"]
[Annotator "TA"]
[PlyCount "87"]
[EventDate "2024.03.26"]
[EventType "tourn"]
[EventCountry "USA"]
[SourceTitle "playchess.com"]
[Source "ChessBase"]
[SourceQuality "1"]
[TimeControl "5400+30"]

{[%evp 16,87,35,34,39,25,21,21,10,10,37,14,35,20,24,32,58,34,57,-26,36,-138,0,0,0,0,76,93,101,81,128,74,115,105,115,33,50,56,144,154,289,247,279,267,291,264,493,287,279,261,407,281,246,156,314,240,619,191,254,262,29979,29980,29980,29981,29981,29982,29982,29983,29989,29990,29991,1929,29998,29999]} 1. e4 {[%emt 0:00:02]} c5 {[%emt 0:00:08]} 2. Nf3 {[%emt 0:00:39]} e6 {[%emt 0:00:07]} 3. d4 {[%emt 0:00:35]} cxd4 {[%emt 0:00:06]} 4. Nxd4 {[%emt 0:00:03]} a6 {[%emt 0:00:31]} 5. Bd3 {[%emt 0:00:14]} Bc5 {[%emt 0:00:36]} 6. Nb3 {[%emt 0:00:22]} Ba7 {[%emt 0:00:19]} 7. Qe2 {[%emt 0:00:11]} Ne7 {[%emt 0:00:14] Nowadays more popular than 7...Nc6. B42: Sicilian: Kan Variation: 5 Bd3.} 8. Be3 {[%emt 0:00:13]} O-O {[%emt 0:01:24]} 9. Bxa7 {[%emt 0:03:11]} Rxa7 {[%emt 0:00:14]} 10. Qe3 {[%emt 0:00:03]} Nbc6 {[%emt 0:00:15]} 11. Nc3 {[%emt 0:00:09]} b5 {[%emt 0:01:39]} 12. O-O-O {[%emt 0:00:07]} b4 {[%emt 0:05:09]} 13. Na4 $1 {[%emt 0:00:18]} d6 {[%emt 0:00:34]} 14. f4 {[%emt 0:00:40]} Bd7 {[%emt 0:04:02]} 15. h4 {[%emt 0:03:45]} Rb7 $146 {[%emt 0:06:50]} ({Predecessor:} 15... Nc8 16. e5 Nxe5 17. fxe5 Bxa4 18. exd6 Bxb3 19. axb3 Rd7 20. Qe4 g6 21. Qxb4 Rxd6 {½-½ Gopal,G (2573)-Vetoshko,V (2499) Bayern-chI Bank Hofmann 26th 2023 (9)}) 16. Bxa6 {[%emt 0:11:17]} Ra7 {[%emt 0:00:49]} 17. Bb5 {[%emt 0:07:09]} (17. Rxd6 $1 $14 Qb8 (17... Rxa6 18. Nac5 $16) 18. Rhd1 (18. Qd3 Rxa6 19. Nac5 Bc8 $17) 18... Rxa6 19. Nac5) 17... Qc7 {[%emt 0:13:05]} (17... Nc8 $1 $11 18. Qe2 Qe8) 18. Kb1 $2 {[%emt 0:27:12]} (18. Qb6 $14 Rb8 19. Qxc7 Rxc7 20. Bf1) 18... Rb8 {[%emt 0:09:16]} (18... Nb8 $17 19. Qe2 Rc8 (19... Rxa4 20. Bxa4 Bxa4 21. h5 $17)) 19. c4 $11 {[%emt 0:05:28]} bxc3 {[%emt 0:08:08]} 20. Nxc3 {[%emt 0:02:54]} Nb4 {[%emt 0:01:29]} (20... Rab7 $11 {keeps the balance.}) 21. Bxd7 $1 $16 {[%emt 0:02:14]} Qxd7 {[%emt 0:00:38]} 22. Rh3 {[%emt 0:01:18]} Qc7 {[%emt 0:05:30]} ({Better is} 22... h5) 23. Qd2 {[%emt 0:04:58]} (23. Qd4 $142 $1) 23... Ra6 {[%emt 0:04:27]} 24. h5 {[%emt 0:01:56]} h6 {[%emt 0:10:46]} 25. g4 {[%emt 0:06:39]} (25. f5 $16) 25... Qa7 {[%emt 0:03:01]} 26. Nc1 {[%emt 0:02:48]} Ra8 {[%emt 0:06:04]} (26... d5 $14) 27. b3 $1 $16 {[%emt 0:02:59]} Kf8 {[%emt 0:03:48]} (27... d5 $16) 28. g5 {[%emt 0:02:24]} Qc5 {[%emt 0:00:26]} 29. gxh6 {[%emt 0:00:51]} gxh6 {[%emt 0:00:03]} 30. f5 {[%emt 0:03:43]} Nxf5 $2 {[%emt 0:00:19]} (30... exf5 {is a better defense.} 31. Nd3 (31. Qxh6+ Ke8 $18) 31... Nxd3) 31. Rf3 {[%emt 0:00:59]} (31. exf5 Qxf5+ 32. Rd3 Ke7 $16) (31. Rf1 $142) 31... Ng7 $18 {[%emt 0:01:17]} 32. Rdf1 {[%emt 0:02:53]} (32. Qxh6 $6 Qxh5 33. Qe3 R8a7 $18) 32... R8a7 {[%emt 0:00:28]} (32... Qxh5 $142 33. Rxf7+ (33. a3 Nc6 $18) 33... Qxf7 34. Rxf7+ Kxf7 35. Qf4+ (35. Qxh6 Kg8 $18) 35... Kg8 36. Qxh6 Rf8) 33. Qxh6 {[%emt 0:00:51]} Qxh5 {[%emt 0:00:33]} 34. Qf6 {[%emt 0:01:37]} Qh2 $2 {[%emt 0:07:48]} (34... Ne8 $16 {was necessary.} 35. Qxe6 d5) 35. R1f2 {[%emt 0:00:38]} Qe5 $2 {[%emt 0:00:05]} (35... Qh5 36. Rg3 Ne8 37. Qxe6 Ra5) 36. Qh4 $2 {[%emt 0:00:59]} (36. Qg6 {[%cal Rf3f7]} Nf5 37. Qh5 Nxa2 38. N1xa2) 36... Ne8 {[%emt 0:04:12]} (36... Qh5 $142 37. Qg3 Ne8) 37. Rg2 {[%emt 0:01:26]} f6 $2 {[%emt 0:02:33] [#]} (37... Ra5 $18 38. Qh6+ Ke7) 38. Qh8+ $1 {[%emt 0:01:39]} Ke7 {[%emt 0:00:03]} 39. Rg8 {[%emt 0:00:46]} Kd7 {[%emt 0:02:24]} 40. Rxe8 {[%emt 0:00:26]} Nc6 {[%emt 0:00:02]} 41. Rc8 {[%emt 0:00:25]} d5 {[%emt 0:00:29]} 42. exd5 {[%emt 0:01:30]} exd5 {[%emt 0:00:12] [#]} 43. Rxf6 {[%emt 0:01:25]} (43. Nd3 $142 $1 Qxc3 44. Nc5+ (44. Qxf6 $2 {perishes.} Qxf6 45. Rxf6 Kxc8 $19) 44... Kd6 45. Rxc3 Rf7 46. Rxc6+ (46. Nxa6 Ne5 47. Rd8+ Nd7 48. Rxd7+ Kxd7 49. Qc8+ Kd6 50. Re3 Re7) 46... Kxc6 47. Nxa6+ Kd6 48. Qb8+ Kd7 49. Re3 Kc6 50. Re6+ Kd7 51. Qe8#) 43... Qe7 {[%emt 0:01:14]} 44. Qh3+ {[%emt 0:00:08]} 1-0

[Event "1000GM Spring GM-A 2024"]
[Site "New York"]
[Date "2024.03.31"]
[Round "9.2"]
[White "Lu, Maximillian"]
[Black "Bortnyk, Mykola"]
[Result "0-1"]
[ECO "E11"]
[WhiteElo "2375"]
[BlackElo "2453"]
[Annotator "TA"]
[PlyCount "82"]
[EventDate "2024.03.26"]
[EventType "tourn"]
[EventCountry "USA"]
[SourceTitle "playchess.com"]
[Source "ChessBase"]
[SourceQuality "1"]
[TimeControl "5400+30"]

{[%evp 12,82,31,26,29,15,18,20,44,20,11,18,12,10,54,0,0,0,0,0,13,22,11,16,9,-58,-27,-153,-152,-256,-245,-268,-258,-239,-231,-268,-261,-243,-255,-250,-252,-266,-304,-338,-275,-278,-268,-250,-274,-264,-206,-208,-250,-495,-490,-421,-415,-648,-638,-766,-743,-1071,-1096,-919,-661,-1688,-1613,-1651,-1839,-6311,-6238,-2216,-1799]} 1. d4 {[%emt 0:00:02]} Nf6 {[%emt 0:00:02]} 2. c4 {[%emt 0:00:04]} e6 {[%emt 0:00:10]} 3. Nf3 {[%emt 0:00:02]} Bb4+ {[%emt 0:00:27]} 4. Bd2 {[%emt 0:00:02]} c5 {[%emt 0:00:45]} 5. Bxb4 {[%emt 0:00:18]} cxb4 {[%emt 0:00:01]} 6. g3 {[%emt 0:00:24]} O-O {[%emt 0:00:43]} 7. Bg2 {[%emt 0:00:05]} Qc7 {[%emt 0:00:45]} 8. Nbd2 {[%emt 0:01:12]} a5 {[%emt 0:00:17]} 9. a3 {[%emt 0:01:50]} Na6 {[%emt 0:00:12] The position is equal.} 10. Ne5 {[%emt 0:09:17]} d6 {[%emt 0:04:05]} 11. Nd3 {[%emt 0:00:15]} bxa3 {[%emt 0:00:13]} 12. Rxa3 {[%emt 0:00:19]} e5 {[%emt 0:00:04] [#]} 13. c5 {[%emt 0:11:14]} dxc5 $11 {[%emt 0:01:23]} 14. dxe5 {[%emt 0:00:11]} Ng4 {[%emt 0:00:05][%cal Of8d8]} 15. O-O {[%emt 0:15:11]} Nb4 {[%emt 0:01:40]} 16. Qc1 {[%emt 0:04:51] Nxb4 would now be deadly.} Nxd3 {[%emt 0:01:36]} (16... Nxe5 $2 {loses.} 17. Nxb4 (17. Qxc5 Qxc5 18. Nxc5 Rd8 $11) (17. Nxc5 Rb8 $11) 17... Be6 18. Nd5 Bxd5 19. Bxd5 $18) 17. Rxd3 {[%emt 0:05:22]} Qxe5 {[%emt 0:06:41]} 18. e4 {[%emt 0:04:38]} (18. Rc3 $11) 18... Qe7 {[%emt 0:02:06]} 19. f4 {[%emt 0:02:51] [#] Repels Ne5. Black keeps a firm grip on the game.} (19. e5 $11 {remains equal.}) 19... b5 $1 $17 {[%emt 0:02:00] aiming for ...c4.} 20. Kh1 {[%emt 0:14:04]} (20. Nf3 $17) 20... c4 $19 {[%emt 0:00:42]} 21. Rdf3 {[%emt 0:00:51]} Bb7 {[%emt 0:01:17][%cal Of7f5]} 22. h3 {[%emt 0:06:21]} Nf6 {[%emt 0:00:16]} 23. e5 {[%emt 0:00:42]} Nd7 {[%emt 0:01:05][%cal Bf6d7,Bd7c5,Bc5d3][%mdl 32]} 24. Re3 {[%emt 0:00:18]} Bxg2+ {[%emt 0:01:38]} 25. Kxg2 {[%emt 0:00:05]} Nc5 {[%emt 0:00:38]} 26. Qc3 {[%emt 0:02:08]} Rfd8 {[%emt 0:00:14]} 27. Nf3 {[%emt 0:00:45]} Rd3 {[%emt 0:01:30]} 28. Rxd3 {[%emt 0:00:12]} Nxd3 {[%emt 0:00:01]} 29. Qd4 {[%emt 0:05:11]} Qb4 {[%emt 0:01:26]} 30. Qd5 {[%emt 0:00:07]} Qxb2+ {[%emt 0:00:11]} 31. Kg1 {[%emt 0:00:52] [#]} Rf8 {[%emt 0:00:05] Threatens to win with ...Qe2.} 32. e6 $2 {[%emt 0:00:06]} (32. Ng5 {was necessary.} Nc1 33. Rf2) 32... fxe6 {[%emt 0:00:10]} 33. Qxe6+ {[%emt 0:00:02]} Kh8 {[%emt 0:00:00]} 34. Ng5 {[%emt 0:00:32]} (34. Qd5 $142 Qe2 35. Ng5) 34... Qf6 {[%emt 0:00:20] Strongly threatening ...Qxe6. Black is clearly winning.} 35. Qd5 {[%emt 0:00:50]} Qf5 {[%emt 0:00:19]} 36. Qb7 {[%emt 0:00:37]} h6 {[%emt 0:00:09]} 37. Ne4 {[%emt 0:00:11]} Nc5 {[%emt 0:00:10]} 38. Nxc5 {[%emt 0:00:23]} Qxc5+ {[%emt 0:00:02]} 39. Kh2 {[%emt 0:00:24]} c3 {[%emt 0:00:06]} 40. f5 {[%emt 0:00:11]} c2 {[%emt 0:00:35]} 41. f6 {[%emt 0:00:05]} gxf6 {[%emt 0:00:09] Weighted Error Value: White=0.89/Black=0.18 (very precise) .  Mistake:       	White=6     	---        Inaccurate:     	---       	Black=2      OK:         	White=9     	Black=12     Best:        	White=1     	Black=3      Strong:       	---       	Black=1} ({Inferior is} 41... c1=R 42. Qxg7#) 0-1

[Event "1000GM Spring GM-A 2024"]
[Site "New York"]
[Date "2024.03.31"]
[Round "9.3"]
[White "Novik, Maxim"]
[Black "Mardov, Dimitar"]
[Result "0-1"]
[ECO "C95"]
[WhiteElo "2415"]
[BlackElo "2473"]
[Annotator "RC"]
[PlyCount "62"]
[EventDate "2024.03.26"]
[EventType "tourn"]
[EventCountry "USA"]
[SourceTitle "playchess.com"]
[Source "ChessBase"]
[SourceQuality "1"]
[TimeControl "5400+30"]

1. e4 {[%emt 0:00:03]} e5 {[%emt 0:00:04]} 2. Nf3 {[%emt 0:00:04]} Nc6 {[%emt 0:00:04]} 3. Bb5 {[%emt 0:00:03]} a6 {[%emt 0:00:47]} 4. Ba4 {[%emt 0:00:11]} Nf6 {[%emt 0:00:12]} 5. O-O {[%emt 0:00:08]} Be7 {[%emt 0:01:17]} 6. Re1 {[%emt 0:00:59]} b5 {[%emt 0:01:21]} 7. Bb3 {[%emt 0:00:01]} d6 {[%emt 0:00:37]} 8. c3 {[%emt 0:00:06]} O-O {[%emt 0:00:22]} 9. h3 {[%emt 0:00:55]} Nb8 {[%emt 0:01:30]} 10. d4 {[%emt 0:00:17]} Nbd7 {[%emt 0:00:34]} 11. Nbd2 {[%emt 0:00:25]} Bb7 {[%emt 0:00:39]} 12. Bc2 {[%emt 0:00:10]} Re8 {[%emt 0:00:14]} 13. Nf1 {[%emt 0:00:06]} Bf8 {[%emt 0:01:41]} 14. Ng3 {[%emt 0:00:05]} a5 {[%emt 0:00:24]} 15. a4 {[%emt 0:01:20]} b4 {[%emt 0:05:16]} 16. cxb4 {[%emt 0:01:14]} axb4 {[%emt 0:00:19]} 17. b3 {[%emt 0:03:02]} exd4 {[%emt 0:14:11]} 18. Nxd4 {[%emt 0:02:06]} Nc5 {[%emt 0:01:57]} 19. f3 {[%emt 0:00:25]} g6 {[%emt 0:09:43]} 20. Bb2 {[%emt 0:02:27]} Bh6 {[%emt 0:11:02]} 21. Nf1 {[%emt 0:12:47]} d5 {[%emt 0:04:58]} 22. Nb5 {[%emt 0:02:52]} Ne6 {[%emt 0:11:13]} 23. Ne3 {[%emt 0:05:10]} c6 {[%emt 0:01:50]} 24. Nd4 {[%emt 0:11:46]} c5 {[%emt 0:04:36]} 25. Nb5 {[%emt 0:03:38]} d4 {[%emt 0:05:37]} 26. Nf1 {[%emt 0:09:19]} Nh5 {[%emt 0:02:22]} 27. Bc1 {[%emt 0:00:33]} Nef4 {[%emt 0:01:43]} 28. Kh2 {[%emt 0:01:16]} Qh4 {[%emt 0:06:21]} 29. Bb1 {[%emt 0:00:21]} Nxg2 {[%emt 0:01:50]} 30. Bxh6 {[%emt 0:03:03]} Nxe1 {[%emt 0:00:39]} 31. Ra2 {[%emt 0:00:25]} Nf4 {[%emt 0:01:51]} 0-1

[Event "1000GM Spring GM-A 2024"]
[Site "New York"]
[Date "2024.04.01"]
[Round "9.4"]
[White "Sethuraman, Sandeep"]
[Black "Lomasov, Semyon"]
[Result "0-1"]
[ECO "A40"]
[WhiteElo "2381"]
[BlackElo "2565"]
[Annotator "TA"]
[PlyCount "118"]
[EventDate "2024.03.26"]
[EventType "tourn"]
[EventCountry "USA"]
[SourceTitle "playchess.com"]
[Source "ChessBase"]
[SourceQuality "1"]
[TimeControl "5400+30"]

{[%evp 28,118,-36,-48,-38,-28,-12,-10,-8,-12,-10,-9,0,-6,0,0,0,0,0,-811,0,0,0,0,0,0,0,0,0,0,2,0,0,0,0,-20,-20,-18,-18,-19,-17,-19,-19,-22,-18,-19,-9,-29,-12,-25,-25,-25,-25,-26,-26,-27,-39,-39,-39,-37,-29,-31,-27,-27,-27,-25,-22,-63,-68,-63,-63,-63,-62,-62,-60,-63,-56,-106,-92,-147,-32,-32,-32,-32,-32,-32,-24,-24,-24,-247,-247,-6396,-5377]} 1. d4 {[%emt 0:00:02]} e6 {[%emt 0:01:25]} 2. c4 {[%emt 0:00:09]} Bb4+ {[%emt 0:00:18]} 3. Nc3 {[%emt 0:00:57]} c5 {[%emt 0:00:28]} 4. dxc5 {[%emt 0:05:03]} Bxc3+ {[%emt 0:01:47]} 5. bxc3 {[%emt 0:00:08]} Qa5 {[%emt 0:00:06]} 6. Qd3 $146 {[%emt 0:10:09] A40: Unusual replies to 1 d4.} ({Predecessor:} 6. e4 Nf6 7. f3 Nc6 8. Ne2 Qxc5 9. a4 Ne5 10. Qd4 Qxd4 11. Nxd4 a6 12. Ba3 {0-1 Holt,C (2549)-Terry,R (2504) Titled Tuesday intern op 02nd Feb blitz 2021 (11)}) 6... Na6 {[%emt 0:02:06]} 7. Qd4 {[%emt 0:07:32]} f6 {[%emt 0:15:28]} 8. Rb1 {[%emt 0:02:44]} Qxa2 {[%emt 0:01:04]} 9. Rb5 {[%emt 0:00:28]} Ne7 {[%emt 0:01:22]} 10. e4 {[%emt 0:03:15]} Nc6 {[%emt 0:01:47]} 11. Qd2 {[%emt 0:01:13]} Qxd2+ {[%emt 0:00:32]} 12. Kxd2 {[%emt 0:01:34]} b6 {[%emt 0:05:12]} 13. cxb6 {[%emt 0:04:55]} axb6 {[%emt 0:00:08]} 14. Rxb6 {[%emt 0:07:40]} Nc5 {[%emt 0:00:16]} 15. f3 {[%emt 0:00:25]} Ra2+ {[%emt 0:18:52]} 16. Rb2 {[%emt 0:07:24]} Rxb2+ {[%emt 0:04:00]} (16... Ra1 {feels hotter.} 17. Ne2 Na4 18. Rb3 Na5) 17. Bxb2 {[%emt 0:00:22]} Ba6 {[%emt 0:00:02]} 18. Nh3 {[%emt 0:09:48]} Kf7 {[%emt 0:07:21]} 19. Ba3 {[%emt 0:03:51]} Nb3+ {[%emt 0:03:05]} 20. Kc2 {[%emt 0:01:04]} Nba5 {[%emt 0:00:04]} 21. c5 {[%emt 0:06:42]} Bc4 {[%emt 0:00:16]} 22. Bxc4 {[%emt 0:00:05]} Nxc4 {[%emt 0:00:05]} 23. Rf1 $2 {[%emt 0:00:04][%mdl 8192]} (23. Bc1 $11) 23... Re8 $2 {[%emt 0:36:16]} ({Black should play} 23... Ne3+ $19 24. Kb3 Rb8+ (24... Nxf1 $2 25. Bc1 $19) 25. Ka2 Nxf1) 24. Bc1 $1 $11 Ra8 {[%emt 0:00:00]} 25. Rd1 {[%emt 0:02:38]} Ke8 {[%emt 0:00:00]} 26. Nf4 {[%emt 0:03:14]} N6e5 {[%emt 0:00:00]} 27. Kb3 {[%emt 0:02:54]} g5 {[%emt 0:00:00]} 28. Nd3 {[%emt 0:04:11]} Ra1 {[%emt 0:00:00]} 29. Nxe5 {[%emt 0:02:10]} Nxe5 {[%emt 0:00:00]} 30. h3 {[%emt 0:04:16]} h5 {[%emt 0:00:00]} 31. Kb2 {[%emt 0:02:55]} Ra5 {[%emt 0:00:00]} 32. Kb3 {[%emt 0:00:29]} Rb5+ {[%emt 0:00:00]} 33. Kc2 {[%emt 0:00:33]} Rxc5 {[%emt 0:00:00]} 34. Ba3 {[%emt 0:01:22]} Ra5 {[%emt 0:00:00]} 35. Kb3 {[%emt 0:00:09]} Ng6 {[%emt 0:00:00]} 36. Rd2 {[%emt 0:02:22]} Nf4 {[%emt 0:04:38]} 37. c4 {[%emt 0:00:29]} Ra7 {[%emt 0:00:36]} 38. Bd6 {[%emt 0:01:38]} e5 {[%emt 0:00:21]} 39. Bc5 {[%emt 0:00:32]} Ra1 {[%emt 0:00:41]} 40. Be3 {[%emt 0:02:13]} Ne6 {[%emt 0:00:08]} 41. Ra2 {[%emt 0:01:07]} Re1 {[%emt 0:01:06]} 42. Bf2 {[%emt 0:00:03]} Rf1 {[%emt 0:00:22]} 43. Be3 {[%emt 0:00:17]} g4 {[%emt 0:00:46]} 44. hxg4 {[%emt 0:00:09]} ({Reject} 44. fxg4 hxg4 45. hxg4 Re1 $17) 44... hxg4 {[%emt 0:00:01]} 45. Rf2 {[%emt 0:01:16]} (45. fxg4 Re1 46. Bd2 Rxe4 $15) 45... Re1 {[%emt 0:01:40]} 46. Bd2 {[%emt 0:01:13]} Rg1 {[%emt 0:00:11]} 47. fxg4 {[%emt 0:00:15]} Nc5+ {[%emt 0:00:09]} 48. Kc2 $1 {[%emt 0:00:26]} Nxe4 {[%emt 0:00:27]} 49. Re2 {[%emt 0:00:05]} Ng3 {[%emt 0:00:52]} 50. Re1 {[%emt 0:01:25]} Rxg2 {[%emt 0:00:55]} 51. g5 $1 {[%emt 0:00:14]} Kf7 {[%emt 0:00:18]} 52. gxf6 {[%emt 0:00:29]} (52. Kd1 $15) 52... Kxf6 $17 {[%emt 0:00:02]} 53. Kc1 {[%emt 0:00:36] [#]} ({White has to play} 53. Kd3) 53... Rg1 {[%emt 0:01:05]} (53... Kf5 $3 $17 {[%mdl 512] Threatens to win with ...Ne4.} 54. Rd1 Ke6) 54. Kd1 {[%emt 0:00:49]} Rxe1+ {[%emt 0:00:04]} 55. Bxe1 {[%emt 0:00:03]} Nf5 {[%emt 0:00:23]} 56. Ke2 {[%emt 0:00:15]} e4 {[%emt 0:00:24]} 57. Bc3+ $1 {[%emt 0:00:47]} Ke6 {[%emt 0:00:01]} 58. Bb4 $2 {[%emt 0:01:43] [#]} (58. Kd2 $11 {and White stays safe.}) 58... Ke5 $1 $19 {[%emt 0:00:10]} 59. Bc5 $2 {[%emt 0:00:22] [#]} (59. Bc3+ Kf4 60. Bb2) 59... Nd6 $1 {[%emt 0:00:23]} 0-1

[Event "1000GM Spring GM-A 2024"]
[Site "New York"]
[Date "2024.03.31"]
[Round "9.5"]
[White "Zilka, Stepan"]
[Black "Ostrovskiy, Aleksandr"]
[Result "1-0"]
[ECO "B10"]
[WhiteElo "2589"]
[BlackElo "2411"]
[Annotator "TA"]
[PlyCount "53"]
[EventDate "2024.03.26"]
[EventType "tourn"]
[EventCountry "USA"]
[SourceTitle "playchess.com"]
[Source "ChessBase"]
[SourceQuality "1"]
[TimeControl "5400+30"]

{[%evp 9,52,15,17,20,18,29,16,20,20,17,14,9,29,4,18,3,2,6,32,12,33,32,40,23,41,26,43,34,40,38,129,96,287,281,327,238,411,408,1612,1573,29992,29993,29998,29999,29999]} 1. e4 {[%emt 0:00:04]} c6 {[%emt 0:08:07]} 2. Nf3 {[%emt 0:00:05]} d5 {[%emt 0:00:04]} 3. d3 {[%emt 0:00:02]} Qc7 {[%emt 0:02:54]} 4. Nc3 {[%emt 0:01:52]} dxe4 {[%emt 0:01:12]} 5. Nxe4 {[%emt 0:02:24]} Nf6 {[%emt 0:01:45]} 6. Qe2 {[%emt 0:03:21]} Nxe4 {[%emt 0:04:54]} 7. Qxe4 {[%emt 0:00:07]} Nd7 {[%emt 0:01:18]} 8. Bf4 {[%emt 0:03:09] The position is equal.} Qb6 {[%emt 0:13:11]} 9. O-O-O {[%emt 0:00:10]} Nf6 {[%emt 0:00:10]} 10. Qe1 {[%emt 0:00:43]} Bg4 {[%emt 0:04:14]} 11. Be2 {[%emt 0:00:49]} e6 {[%emt 0:08:03]} 12. h3 {[%emt 0:02:28]} Bxf3 {[%emt 0:01:36]} 13. Bxf3 {[%emt 0:00:08]} a5 {[%emt 0:08:22]} 14. d4 {[%emt 0:05:01]} a4 {[%emt 0:01:59]} 15. a3 {[%emt 0:01:43]} Be7 {[%emt 0:03:09]} 16. h4 {[%emt 0:02:36]} O-O {[%emt 0:09:21]} 17. g4 {[%emt 0:00:10]} Rfd8 {[%emt 0:03:46]} 18. g5 {[%emt 0:01:02]} Nd5 {[%emt 0:00:43]} 19. Be5 {[%emt 0:00:28]} Qa6 {[%emt 0:03:30]} ({Black should play} 19... c5 $14) 20. g6 {[%emt 0:09:28]} hxg6 {[%emt 0:00:53] [#] This costs Black the game.} (20... fxg6 $16 {was called for.} 21. h5 h6) 21. h5 $18 {[%emt 0:01:27]} gxh5 {[%emt 0:05:06]} (21... g5 22. h6 Bf6 23. hxg7 Kxg7 24. Bxd5 (24. Qg1 Bxe5 25. Qxg5+ Kf8 $18) 24... Rxd5 25. Qe3 Rxe5 26. dxe5 $18) 22. Rg1 {[%emt 0:10:12][%cal Bh1g1,Bg1g6,Bg6h6,Bh6h8][%mdl 32]} ({Weaker is} 22. Rxh5 Bf6 (22... f6 $2 23. Bxf6 Kf7 24. Bxg7 $18) 23. Kb1 (23. Qh1 Kf8 $16) 23... Bxe5 24. Qxe5 (24. dxe5 Nf4 $11) 24... Qb5 $16) 22... g6 {[%emt 0:17:13]} (22... Nf6 {keeps fighting.} 23. Qe3 Kf8) 23. Qe4 {[%emt 0:00:02]} ({Not} 23. Bxh5 Kf8 24. Bxg6 fxg6 $11) 23... f5 {[%emt 0:00:00]} (23... Kf8 $142 24. Rxg6 Bd6 (24... fxg6 25. Qxg6 $18)) 24. Rxg6+ {[%emt 0:01:18]} Kf7 {[%emt 0:00:00] [#]} 25. Bxh5 $1 {[%emt 0:04:10] This pair of bishops is nice. White mates.} fxe4 {[%emt 0:00:00]} (25... Ke8 26. Rxe6+) 26. Rh6+ {[%emt 0:00:14]} Kf8 {[%emt 0:00:00]} 27. Rh8# {[%emt 0:50:47] Weighted Error Value: White=0.10 (very precise) /Black=0.50.  Loses game:     	---       	Black=1      Mistake:       	---       	Black=3      Inaccurate:     	---       	Black=2      OK:         	White=6     	Black=8      Best:        	White=3     	---} 1-0